[Event "FIDE World Rapid-ch Open 2018"]
[White "Dubov, Daniil"]
[Black "Artemiev, Vladislav"]
[Site "St. Petersburg"]
[Round "13.3"]
[Annotator "ChessBase"]
[Result "1/2-1/2"]
[Date "2018.12.28"]
[WhiteElo "2703"]
[BlackElo "2709"]
[PlyCount "27"]
[TimeControl "900+10"]

1. c4 {[%emt 0:0:0]} e5 {[%emt 0:0:0]} 2. Nc3 {[%emt 0:0:0]} Bb4 {[%emt 0:0:0]
} 3. Nd5 {[%emt 0:0:0]} Bc5 {[%emt 0:0:0]} 4. b4 {[%emt 0:0:0]} Bf8 {[%emt 0:0:2]} 5. Bb2 {[%emt 0:0:15]} c6 {[%emt 0:0:2]} 6. Ne3 {[%emt 0:0:1]
} f6 {[%emt 0:0:4]} 7. c5 {[%emt 0:1:50]} d5 {[%emt 0:0:17]} 8. cxd6 {[%emt 0:0:3]} Bxd6 {[%emt 0:0:2]} 9. a3 {[%emt 0:0:31]} a5 {[%emt 0:0:38]
} 10. bxa5 {[%emt 0:0:1]} Be6 {[%emt 0:0:31]} 11. g3 {[%emt 0:0:0]} Ne7 {[%emt 0:1:10]} 12. Bg2 {[%emt 0:0:15]} Qxa5 {[%emt 0:0:38]} 13. Nf3 {[%emt 0:0:23]} 0-0 {[%emt 0:3:36]} 14. 0-0 {[%emt 0:0:2]} 1/2-1/2

[Event "FIDE World Rapid-ch Open 2018"]
[White "Andreikin, Dmitry"]
[Black "Mamedyarov, Shakhriyar"]
[Site "St. Petersburg"]
[Round "13.4"]
[Annotator "ChessBase"]
[Result "1/2-1/2"]
[Date "2018.12.28"]
[WhiteElo "2719"]
[BlackElo "2817"]
[PlyCount "30"]
[TimeControl "900+10"]

1. e4 {[%emt 0:0:0]} e5 {[%emt 0:0:0]} 2. Nf3 {[%emt 0:0:0]} Nc6 {[%emt 0:0:0]
} 3. Bc4 {[%emt 0:0:8]} Bc5 {[%emt 0:0:0]} 4. 0-0 {[%emt 0:0:0]} Nf6 {[%emt 0:0:0]} 5. d3 {[%emt 0:0:1]} a6 {[%emt 0:0:9]} 6. c3 {[%emt 0:0:11]
} d6 {[%emt 0:0:1]} 7. Nbd2 {[%emt 0:0:9]} 0-0 {[%emt 0:0:0]} 8. Bb3 {[%emt 0:0:10]} Ba7 {[%emt 0:0:24]} 9. h3 {[%emt 0:0:6]} Ne7 {[%emt 0:0:34]
} 10. Re1 {[%emt 0:0:7]} Ng6 {[%emt 0:0:2]} 11. Nf1 {[%emt 0:0:0]} Re8 {[%emt 0:0:12]} 12. Ng3 {[%emt 0:0:44]} h6 {[%emt 0:3:21]} 13. d4 {[%emt 0:0:25]} c6 {[%emt 0:0:17]} 14. Be3 {[%emt 0:1:16]} exd4 {[%emt 0:0:0]} 15. Bxd4 {[%emt 0:0:6]} c5 1/2-1/2

[Event "FIDE World Rapid-ch Open 2018"]
[White "Firouzja, Alireza"]
[Black "Wang, Hao"]
[Site "St. Petersburg"]
[Round "13.5"]
[Annotator "ChessBase"]
[Result "1/2-1/2"]
[Date "2018.12.28"]
[WhiteElo "2607"]
[BlackElo "2730"]
[PlyCount "77"]
[TimeControl "900+10"]

1. e4 {[%emt 0:0:0]} e5 {[%emt 0:0:0]} 2. Nf3 {[%emt 0:0:0]} Nc6 {[%emt 0:0:0]
} 3. Bb5 {[%emt 0:0:0]} a6 {[%emt 0:0:5]} 4. Ba4 {[%emt 0:0:0]} d6 {[%emt 0:0:2]} 5. c3 {[%emt 0:0:33]} Bd7 {[%emt 0:0:3]} 6. d4 {[%emt 0:0:3]
} g6 {[%emt 0:0:6]} 7. 0-0 {[%emt 0:0:13]} Bg7 {[%emt 0:0:9]
} 8. Bg5 {[%emt 0:0:33]} Nf6 {[%emt 0:0:21]} 9. Nbd2 {[%emt 0:0:37]} h6 {[%emt 0:0:21]
} 10. Bh4 {[%emt 0:0:36]} b5 {[%emt 0:0:57]} 11. Bc2 {[%emt 0:0:0]} 0-0 {[%emt 0:1:41]} 12. Nb3 {[%emt 0:0:31]} exd4 {[%emt 0:1:42]} 13. cxd4 {[%emt 0:0:12]} g5 {[%emt 0:0:5]} 14. Bg3 {[%emt 0:1:21]} Nh5 {[%emt 0:0:9]
} 15. a3 {[%emt 0:0:57]} Ne7 {[%emt 0:2:7]} 16. e5 {[%emt 0:0:0]} Nxg3 {[%emt 0:0:6]} 17. hxg3 {[%emt 0:0:45]} dxe5 {[%emt 0:1:59]} 18. Nxe5 {[%emt 0:2:0]} Bf5 {[%emt 0:0:17]} 19. Rc1 {[%emt 0:0:41]} a5 {[%emt 0:3:43]
} 20. Bxf5 {[%emt 0:0:54]} Nxf5 {[%emt 0:0:3]} 21. Nc6 {[%emt 0:0:1]
} Qd6 {[%emt 0:0:11]} 22. Qd3 {[%emt 0:0:7]} Ne7 {[%emt 0:0:0]} 23. Qxb5 {[%emt 0:0:7]} a4 {[%emt 0:0:38]} 24. Nba5 {[%emt 0:0:1]} Nxc6 {[%emt 0:0:14]} 25. Nxc6 {[%emt 0:0:2]} Rfe8 {[%emt 0:0:16]} 26. Rc4 {[%emt 0:2:9]
} Re2 {[%emt 0:0:34]} 27. Rxa4 {[%emt 0:1:12]} Rxa4 {[%emt 0:0:0]} 28. Qxa4 {[%emt 0:0:1]} Rxb2 {[%emt 0:0:2]} 29. Re1 {[%emt 0:0:2]
} Qf6 {[%emt 0:0:48]} 30. Ne7+ {[%emt 0:1:29]} Kh7 {[%emt 0:0:3]} 31. Qa8 {[%emt 0:0:2]
} Qxf2+ {[%emt 0:1:11]} 32. Kh2 {[%emt 0:0:1]} Bf8 {[%emt 0:0:0]} 33. Qe4+ {[%emt 0:1:30]} Kh8 {[%emt 0:0:1]} 34. Nf5 {[%emt 0:0:19]} Kg8 {[%emt 0:0:19]} 35. Rc1 {[%emt 0:1:43]} Re2 {[%emt 0:1:18]} 36. Qd5 {[%emt 0:0:1]
} Rc2 {[%emt 0:0:4]} 37. Rxc2 {[%emt 0:0:43]} Qxc2 {[%emt 0:0:0]} 38. Qe5 {[%emt 0:0:1]} Qd1 {[%emt 0:0:33]} 39. a4 {[%emt 0:0:38]} 1/2-1/2

[Event "FIDE World Rapid-ch Open 2018"]
[White "Gelfand, Boris"]
[Black "Matlakov, Maxim"]
[Site "St. Petersburg"]
[Round "13.6"]
[Annotator "ChessBase"]
[Result "1/2-1/2"]
[Date "2018.12.28"]
[WhiteElo "2673"]
[BlackElo "2700"]
[PlyCount "27"]
[TimeControl "900+10"]

1. d4 {[%emt 0:0:0]} Nf6 {[%emt 0:0:0]} 2. c4 {[%emt 0:0:0]} e6 {[%emt 0:0:0]} 3. Nf3 {[%emt 0:0:0]} d5 {[%emt 0:0:0]} 4. g3 {[%emt 0:0:0]} Bb4+ {[%emt 0:0:0]} 5. Bd2 {[%emt 0:0:2]} Be7 {[%emt 0:0:2]} 6. Bg2 {[%emt 0:0:0]} 0-0 {[%emt 0:0:2]} 7. 0-0 {[%emt 0:0:2]} Nbd7 {[%emt 0:0:1]} 8. Qb3 {[%emt 0:0:11]} c6 {[%emt 0:0:7]} 9. Rd1 {[%emt 0:0:15]} Ne4 {[%emt 0:0:0]} 10. Bb4 {[%emt 0:1:37]} Bxb4 {[%emt 0:1:17]} 11. Qxb4 {[%emt 0:0:1]
} a5 {[%emt 0:0:2]} 12. Qb3 {[%emt 0:1:7]} b5 {[%emt 0:0:13]} 13. cxd5 {[%emt 0:2:16]
} cxd5 {[%emt 0:0:3]} 14. Nc3 {[%emt 0:0:4]} 1/2-1/2

[Event "FIDE World Rapid-ch Open 2018"]
[White "Nakamura, Hikaru"]
[Black "Sargissian, Gabriel"]
[Site "St. Petersburg"]
[Round "13.7"]
[Annotator "ChessBase"]
[Result "1-0"]
[Date "2018.12.28"]
[WhiteElo "2746"]
[BlackElo "2689"]
[PlyCount "63"]
[TimeControl "900+10"]

1. Nf3 {[%emt 0:0:0]} d5 {[%emt 0:0:0]} 2. b3 {[%emt 0:0:0]} Nf6 {[%emt 0:0:13]
} 3. Bb2 {[%emt 0:0:0]} Bg4 {[%emt 0:0:5]} 4. e3 {[%emt 0:0:0]} e6 {[%emt 0:0:22]} 5. d3 {[%emt 0:0:25]} Be7 {[%emt 0:0:33]} 6. h3 {[%emt 0:0:2]
} Bxf3 {[%emt 0:0:5]} 7. Qxf3 {[%emt 0:0:2]} 0-0 {[%emt 0:0:0]} 8. g3 {[%emt 0:0:6]} a5 {[%emt 0:0:14]} 9. a4 {[%emt 0:0:16]} Bb4+ {[%emt 0:0:30]
} 10. c3 {[%emt 0:0:15]} Bd6 {[%emt 0:0:3]} 11. Bg2 {[%emt 0:0:0]} Nbd7 {[%emt 0:0:14]} 12. 0-0 {[%emt 0:0:3]} Qe7 {[%emt 0:0:4]} 13. Qe2 {[%emt 0:0:10]} c6 {[%emt 0:0:9]} 14. Nd2 {[%emt 0:0:13]} Rfe8 {[%emt 0:0:19]
} 15. e4 {[%emt 0:0:19]} dxe4 {[%emt 0:0:26]} 16. dxe4 {[%emt 0:0:2]
} Ne5 {[%emt 0:2:41]} 17. f4 {[%emt 0:0:59]} Bc5+ {[%emt 0:0:0]} 18. Kh2 {[%emt 0:0:20]} Ned7 {[%emt 0:0:15]} 19. e5 {[%emt 0:0:16]} Nd5 {[%emt 0:0:3]} 20. Rf3 {[%emt 0:0:1]} Qf8 {[%emt 0:0:26]} 21. Ne4 {[%emt 0:0:50]
} Be7 {[%emt 0:0:1]} 22. c4 {[%emt 0:0:25]} Nb4 {[%emt 0:0:0]} 23. f5 {[%emt 0:0:24]} exf5 {[%emt 0:0:30]} 24. Rxf5 {[%emt 0:0:1]} g6 {[%emt 0:1:26]} 25. e6 {[%emt 0:3:17]} gxf5 {[%emt 0:0:4]} 26. exd7 {[%emt 0:0:1]
} Red8 {[%emt 0:0:25]} 27. Qh5 {[%emt 0:0:26]} f6 {[%emt 0:0:0]} 28. Qxf5 {[%emt 0:0:2]} Qf7 {[%emt 0:0:33]} 29. Bxf6 {[%emt 0:1:57]} Bxf6 {[%emt 0:0:10]} 30. Nxf6+ {[%emt 0:0:1]} Kg7 {[%emt 0:0:30]} 31. Rf1 {[%emt 0:0:24]
} Qe7 {[%emt 0:1:7]} 32. Qxh7+ {[%emt 0:0:4]} 1-0

[Event "FIDE World Rapid-ch Open 2018"]
[White "Karjakin, Sergey"]
[Black "Petrosian, Tigran L."]
[Site "St. Petersburg"]
[Round "13.8"]
[Annotator "ChessBase"]
[Result "1-0"]
[Date "2018.12.28"]
[WhiteElo "2753"]
[BlackElo "2598"]
[PlyCount "93"]
[TimeControl "900+10"]

1. e4 {[%emt 0:0:0]} d6 {[%emt 0:0:0]} 2. d4 {[%emt 0:0:0]} Nf6 {[%emt 0:0:0]} 3. Nc3 {[%emt 0:0:0]} c6 {[%emt 0:0:0]} 4. f4 {[%emt 0:0:0]} Qa5 {[%emt 0:0:0]} 5. Bd3 {[%emt 0:0:2]} e5 {[%emt 0:0:0]} 6. Nf3 {[%emt 0:0:0]} Bg4 {[%emt 0:0:1]} 7. Be3 {[%emt 0:0:6]} Nbd7 {[%emt 0:0:1]} 8. 0-0 {[%emt 0:0:27]} Be7 {[%emt 0:0:4]} 9. h3 {[%emt 0:0:34]} Bxf3 {[%emt 0:0:0]} 10. Qxf3 {[%emt 0:0:2]} 0-0 {[%emt 0:0:13]} 11. Ne2 {[%emt 0:0:25]} Bd8 {[%emt 0:3:5]} 12. c3 {[%emt 0:1:30]} b5 {[%emt 0:0:52]} 13. a3 {[%emt 0:1:29]
} Qa4 {[%emt 0:3:16]} 14. Rad1 {[%emt 0:1:38]} Qb3 {[%emt 0:0:0]} 15. Rd2 {[%emt 0:0:1]} Nb6 {[%emt 0:0:22]} 16. dxe5 {[%emt 0:0:41]} dxe5 {[%emt 0:0:25]} 17. fxe5 {[%emt 0:0:3]} Nfd7 {[%emt 0:0:10]} 18. Nd4 {[%emt 0:0:2]
} Qa4 {[%emt 0:0:4]} 19. Nxc6 {[%emt 0:1:50]} b4 {[%emt 0:0:0]} 20. Nxb4 {[%emt 0:0:4]} Nxe5 {[%emt 0:0:1]} 21. Qg3 {[%emt 0:0:30]} Qe8 {[%emt 0:1:5]} 22. Nd5 {[%emt 0:0:56]} Ng6 {[%emt 0:0:29]} 23. Bc5 {[%emt 0:0:34]
} Nd7 {[%emt 0:0:45]} 24. Bb5 {[%emt 0:0:18]} Qe5 {[%emt 0:0:0]} 25. Qxe5 {[%emt 0:0:6]} Ndxe5 {[%emt 0:0:1]} 26. Bxf8 {[%emt 0:0:8]} Nxf8 {[%emt 0:0:6]} 27. b4 {[%emt 0:0:17]} Ne6 {[%emt 0:0:9]} 28. Rf5 {[%emt 0:0:28]
} f6 {[%emt 0:0:13]} 29. Rdf2 {[%emt 0:0:47]} h6 {[%emt 0:0:0]} 30. Rf1 {[%emt 0:0:13]} Kh7 {[%emt 0:0:9]} 31. R5f2 {[%emt 0:0:8]} a6 {[%emt 0:0:9]} 32. Be2 {[%emt 0:0:14]} Ng5 {[%emt 0:0:1]} 33. Bg4 {[%emt 0:0:12]
} Kh8 {[%emt 0:0:17]} 34. Rc2 {[%emt 0:0:10]} Nxe4 {[%emt 0:0:0]} 35. c4 {[%emt 0:0:4]} Nd6 {[%emt 0:0:22]} 36. c5 {[%emt 0:0:10]} Nb5 {[%emt 0:0:1]
} 37. a4 {[%emt 0:0:13]} Nd4 {[%emt 0:0:0]} 38. Rd2 {[%emt 0:0:0]} Nb3 {[%emt 0:0:31]} 39. Re2 {[%emt 0:0:8]} a5 {[%emt 0:0:8]} 40. Rxe5 {[%emt 0:0:32]} fxe5 {[%emt 0:0:1]} 41. Rf8+ {[%emt 0:0:1]} Kh7 {[%emt 0:0:1]
} 42. c6 {[%emt 0:1:18]} Bb6+ {[%emt 0:0:5]} 43. Nxb6 {[%emt 0:0:1]
} Rxf8 {[%emt 0:0:0]} 44. bxa5 {[%emt 0:0:5]} h5 {[%emt 0:0:0]} 45. Bxh5 {[%emt 0:0:21]} Nxa5 {[%emt 0:0:20]} 46. c7 {[%emt 0:0:5]} Nc4 {[%emt 0:0:1]} 47. c8=Q {[%emt 0:0:10]} 1-0

[Event "FIDE World Rapid-ch Open 2018"]
[White "Nepomniachtchi, Ian"]
[Black "Salem, A.R. Saleh"]
[Site "St. Petersburg"]
[Round "13.9"]
[Annotator "ChessBase"]
[Result "0-1"]
[Date "2018.12.28"]
[WhiteElo "2763"]
[BlackElo "2660"]
[PlyCount "186"]
[TimeControl "900+10"]

1. e4 {[%emt 0:0:0]} c5 {[%emt 0:1:53]} 2. Nf3 {[%emt 0:0:0]} d6 {[%emt 0:0:0]} 3. d4 {[%emt 0:0:0]} cxd4 4. Nxd4 {[%emt 0:0:0]} Nf6 {[%emt 0:0:0]} 5. Nc3 {[%emt 0:0:0]} a6 {[%emt 0:0:1]} 6. Be2 {[%emt 0:0:0]} e5 {[%emt 0:0:5]
} 7. Nb3 {[%emt 0:0:2]} Be7 {[%emt 0:0:2]} 8. 0-0 {[%emt 0:0:0]} 0-0 {[%emt 0:0:2]} 9. Qd3 {[%emt 0:0:1]} Be6 {[%emt 0:0:47]} 10. Bd2 {[%emt 0:0:3]} Nbd7 {[%emt 0:0:7]} 11. Nd5 {[%emt 0:0:2]} Bxd5 {[%emt 0:2:37]
} 12. exd5 {[%emt 0:0:2]} a5 {[%emt 0:0:5]} 13. a4 {[%emt 0:0:0]} g6 {[%emt 0:3:3]} 14. Be3 {[%emt 0:0:34]} Ne8 {[%emt 0:0:11]} 15. Nd2 {[%emt 0:0:25]} Bg5 {[%emt 0:0:57]} 16. Nc4 {[%emt 0:0:37]} Bxe3 {[%emt 0:0:10]
} 17. Qxe3 {[%emt 0:0:10]} f5 {[%emt 0:0:9]} 18. c3 {[%emt 0:0:0]} Qc7 {[%emt 0:1:49]} 19. b4 {[%emt 0:0:3]} b6 {[%emt 0:0:32]} 20. Na3 {[%emt 0:0:38]} Ndf6 {[%emt 0:0:7]} 21. Rfd1 {[%emt 0:0:15]} Ng7 {[%emt 0:0:18]
} 22. Nb5 {[%emt 0:2:4]} Qd8 {[%emt 0:0:2]} 23. bxa5 {[%emt 0:0:53]
} Rxa5 {[%emt 0:0:2]} 24. c4 {[%emt 0:0:27]} Ne4 {[%emt 0:0:0]} 25. Bd3 {[%emt 0:0:55]} Nc5 {[%emt 0:0:2]} 26. Bc2 {[%emt 0:0:1]} f4 {[%emt 0:0:37]} 27. Qh3 {[%emt 0:0:5]} Nf5 {[%emt 0:0:6]} 28. Re1 {[%emt 0:0:19]
} h5 {[%emt 0:0:54]} 29. Kh1 {[%emt 0:0:41]} Kg7 {[%emt 0:0:0]} 30. g3 {[%emt 0:0:15]} fxg3 {[%emt 0:0:30]} 31. fxg3 {[%emt 0:0:27]} Nh6 {[%emt 0:0:24]} 32. Qg2 {[%emt 0:0:53]} Ng4 {[%emt 0:0:18]} 33. Re2 {[%emt 0:0:1]
} Qf6 {[%emt 0:0:7]} 34. h3 {[%emt 0:0:23]} e4 {[%emt 0:1:8]
} 35. Rae1 {[%emt 0:0:36]} Ne5 {[%emt 0:0:33]} 36. Bxe4 {[%emt 0:1:14]} Rxa4 {[%emt 0:0:2]} 37. Bb1 {[%emt 0:0:4]} Rb4 {[%emt 0:0:39]} 38. Nd4 {[%emt 0:0:25]
} Rxc4 {[%emt 0:0:11]} 39. Ne6+ {[%emt 0:0:1]} Nxe6 {[%emt 0:0:0]} 40. dxe6 {[%emt 0:0:2]} Rc3 {[%emt 0:0:22]} 41. Qb7+ {[%emt 0:1:43]
} Kh6 {[%emt 0:0:2]} 42. Qg2 {[%emt 0:0:1]} Ra3 {[%emt 0:0:30]} 43. Ra2 {[%emt 0:0:19]
} Rxa2 {[%emt 0:0:41]} 44. Bxa2 {[%emt 0:0:2]} b5 {[%emt 0:0:0]} 45. Bd5 {[%emt 0:0:1]} Kg7 {[%emt 0:0:11]} 46. Rc1 {[%emt 0:0:17]} Qe7 {[%emt 0:0:33]} 47. Qd2 {[%emt 0:0:56]} h4 {[%emt 0:0:25]} 48. g4 {[%emt 0:0:0]} g5 {[%emt 0:0:12]} 49. Qe3 {[%emt 0:0:40]} Kh6 {[%emt 0:0:2]} 50. Qb3 {[%emt 0:1:13]} b4 {[%emt 0:0:11]} 51. Rd1 {[%emt 0:0:31]} Rf4 {[%emt 0:0:0]} 52. Bg2 {[%emt 0:0:2]} Nc4 {[%emt 0:0:10]} 53. Re1 {[%emt 0:0:30]} Ne5 {[%emt 0:0:7]} 54. Rd1 {[%emt 0:0:5]} Rc4 {[%emt 0:0:14]} 55. Bf1 {[%emt 0:0:20]
} Rf4 {[%emt 0:0:18]} 56. Bg2 {[%emt 0:0:2]} Kg7 {[%emt 0:0:0]} 57. Ra1 {[%emt 0:0:17]} Qc7 {[%emt 0:0:27]} 58. Qd5 {[%emt 0:0:36]} Kf6 {[%emt 0:0:11]} 59. Qa8 {[%emt 0:0:7]} Ng6 {[%emt 0:0:7]} 60. Ra7 {[%emt 0:1:9]
} Qc1+ {[%emt 0:0:3]} 61. Kh2 {[%emt 0:0:1]} Qc5 {[%emt 0:0:0]} 62. Rf7+ {[%emt 0:0:8]} Ke5 {[%emt 0:0:3]} 63. e7 {[%emt 0:0:12]} Nxe7 {[%emt 0:0:10]} 64. Rxe7+ {[%emt 0:0:1]} Kd4 {[%emt 0:0:2]} 65. Qa1+ {[%emt 0:0:7]} Kc4 {[%emt 0:0:20]} 66. Qc1+ {[%emt 0:0:51]} Kb3 {[%emt 0:0:0]} 67. Re3+ {[%emt 0:0:4]} Ka4 {[%emt 0:0:4]} 68. Qa1+ {[%emt 0:0:4]
} Kb5 {[%emt 0:0:2]} 69. Bf1+ {[%emt 0:0:1]} Kb6 {[%emt 0:0:10]} 70. Qa6+ {[%emt 0:0:37]} Kc7 {[%emt 0:0:1]} 71. Qe2 {[%emt 0:0:8]} Kb6 {[%emt 0:0:0]} 72. Bg2 {[%emt 0:0:4]} Rc4 {[%emt 0:0:6]} 73. Qf3 {[%emt 0:0:13]} Rc1 {[%emt 0:0:28]} 74. Qb7+ {[%emt 0:0:56]} Ka5 {[%emt 0:0:1]} 75. Qa8+ {[%emt 0:0:1]
} Kb6 {[%emt 0:0:4]} 76. Qd8+ {[%emt 0:0:15]} Ka6 {[%emt 0:0:0]} 77. Qe7 {[%emt 0:0:24]} Kb6 {[%emt 0:0:0]} 78. Qe8 {[%emt 0:0:12]} Ka6 {[%emt 0:0:11]} 79. Bf3 {[%emt 0:0:2]} Kb6 {[%emt 0:0:31]} 80. Qd8+ {[%emt 0:0:7]
} Qc7 {[%emt 0:0:10]} 81. Qxg5 {[%emt 0:0:29]} d5+ {[%emt 0:0:0]} 82. Qe5 {[%emt 0:0:1]} Qxe5+ 83. Rxe5 {[%emt 0:0:1]} b3 {[%emt 0:0:0]} 84. Bxd5 {[%emt 0:0:22]} b2 {[%emt 0:0:13]} 85. Ba2 {[%emt 0:0:16]} Ra1 {[%emt 0:0:5]} 86. Re6+ {[%emt 0:0:9]} Kc5 {[%emt 0:0:15]} 87. Re5+ {[%emt 0:0:5]
} Kb4 {[%emt 0:0:9]} 88. Re4+ {[%emt 0:0:26]} Ka3 {[%emt 0:0:0]} 89. Bb1 {[%emt 0:0:21]} Rxb1 {[%emt 0:0:1]} 90. Re8 {[%emt 0:0:2]} Ra1 {[%emt 0:0:9]} 91. Ra8+ {[%emt 0:0:1]} Kb3 {[%emt 0:0:1]} 92. Rb8+ {[%emt 0:0:1]
} Kc3 {[%emt 0:0:1]} 93. Kg2 {[%emt 0:0:1]} b1=Q {[%emt 0:0:0]} 0-1

[Event "FIDE World Rapid-ch Open 2018"]
[White "Zubov, Alexander"]
[Black "Zhigalko, Sergei"]
[Site "St. Petersburg"]
[Round "13.11"]
[Annotator "ChessBase"]
[Result "1/2-1/2"]
[Date "2018.12.28"]
[WhiteElo "2597"]
[BlackElo "2604"]
[PlyCount "24"]
[TimeControl "900+10"]

1. d4 {[%emt 0:0:0]} Nf6 {[%emt 0:0:0]} 2. c4 {[%emt 0:0:0]} e6 {[%emt 0:0:0]} 3. Nf3 {[%emt 0:0:1]} b6 {[%emt 0:0:0]} 4. a3 {[%emt 0:0:5]} Bb7 {[%emt 0:0:11]} 5. Nc3 {[%emt 0:0:5]} d5 {[%emt 0:0:3]} 6. Bg5 {[%emt 0:0:0]} Be7 {[%emt 0:0:6]} 7. e3 {[%emt 0:0:20]} 0-0 {[%emt 0:0:4]} 8. Rc1 {[%emt 0:0:4]} Nbd7 {[%emt 0:1:28]} 9. cxd5 {[%emt 0:0:43]} exd5 {[%emt 0:0:0]} 10. Be2 {[%emt 0:0:35]} c5 {[%emt 0:0:30]} 11. 0-0 {[%emt 0:1:39]} Rc8 {[%emt 0:0:17]} 12. dxc5 {[%emt 0:1:27]} bxc5 {[%emt 0:0:24]} 1/2-1/2

[Event "FIDE World Rapid-ch Open 2018"]
[White "Harikrishna, Pentala"]
[Black "Ponkratov, Pavel"]
[Site "St. Petersburg"]
[Round "13.12"]
[Annotator "ChessBase"]
[Result "0-1"]
[Date "2018.12.28"]
[WhiteElo "2725"]
[BlackElo "2630"]
[PlyCount "80"]
[TimeControl "900+10"]

1. e4 {[%emt 0:0:0]} e5 {[%emt 0:0:12]} 2. Nf3 {[%emt 0:0:0]} Nc6 {[%emt 0:0:2]
} 3. Bb5 {[%emt 0:0:0]} f5 {[%emt 0:1:17]} 4. d3 {[%emt 0:0:0]} d6 {[%emt 0:0:16]} 5. exf5 {[%emt 0:2:7]} a6 {[%emt 0:0:1]} 6. Ba4 {[%emt 0:1:11]
} Nf6 {[%emt 0:0:5]} 7. d4 {[%emt 0:0:25]} e4 {[%emt 0:0:4]} 8. Ng5 {[%emt 0:0:3]} Bxf5 {[%emt 0:0:22]} 9. d5 {[%emt 0:0:11]} b5 {[%emt 0:0:1]
} 10. Bb3 {[%emt 0:0:2]} Na5 {[%emt 0:1:18]} 11. 0-0 {[%emt 0:0:0]} Nxb3 {[%emt 0:0:21]} 12. axb3 {[%emt 0:0:2]} h6 {[%emt 0:0:3]} 13. Ne6 {[%emt 0:0:2]} Bxe6 {[%emt 0:0:3]} 14. dxe6 {[%emt 0:0:1]} d5 {[%emt 0:0:1]
} 15. c4 {[%emt 0:0:2]} c6 {[%emt 0:0:36]} 16. cxd5 {[%emt 0:0:0]} cxd5 {[%emt 0:0:1]} 17. Be3 {[%emt 0:0:2]} Qd6 {[%emt 0:0:47]} 18. Nc3 {[%emt 0:0:43]} Rd8 {[%emt 0:0:3]} 19. Ne2 {[%emt 0:1:57]} Qxe6 {[%emt 0:2:46]
} 20. Nd4 {[%emt 0:0:2]} Qd7 {[%emt 0:0:8]} 21. Rxa6 {[%emt 0:0:13]
} Bd6 {[%emt 0:0:2]} 22. Qe2 {[%emt 0:1:48]} 0-0 {[%emt 0:0:0]} 23. Qxb5 {[%emt 0:0:5]} Ng4 {[%emt 0:0:38]} 24. Qxd5+ {[%emt 0:0:38]} Kh8 {[%emt 0:0:1]} 25. g3 {[%emt 0:4:7]} Nxe3 {[%emt 0:3:30]} 26. fxe3 {[%emt 0:0:5]
} Rxf1+ {[%emt 0:0:2]} 27. Kxf1 {[%emt 0:0:1]} Qh3+ {[%emt 0:0:0]} 28. Kg1 {[%emt 0:0:4]} Rf8 {[%emt 0:0:1]} 29. Ra1 {[%emt 0:0:2]} Bxg3 {[%emt 0:0:1]} 30. hxg3 {[%emt 0:0:1]} Qxg3+ {[%emt 0:0:2]} 31. Kh1 {[%emt 0:0:1]} Qh3+ {[%emt 0:0:2]} 32. Kg1 {[%emt 0:0:1]} Qxe3+ {[%emt 0:0:0]} 33. Kh1 {[%emt 0:0:1]} Qh3+ {[%emt 0:3:1]} 34. Kg1 {[%emt 0:0:2]} Qg4+ {[%emt 0:0:1]} 35. Kh1 {[%emt 0:0:1]} Kh7 {[%emt 0:0:52]} 36. Qe6 {[%emt 0:2:11]
} Qh4+ {[%emt 0:0:22]} 37. Kg1 {[%emt 0:0:1]} Rf2 {[%emt 0:0:0]} 38. Qe5 {[%emt 0:0:34]} Rf4 {[%emt 0:0:35]} 39. Qxf4 {[%emt 0:2:38]} Qxf4 {[%emt 0:0:2]} 40. Re1 {[%emt 0:0:2]} e3 {[%emt 0:0:3]} 0-1

[Event "FIDE World Rapid-ch Open 2018"]
[White "Kamsky, Gata"]
[Black "Mchedlishvili, Mikheil"]
[Site "St. Petersburg"]
[Round "13.13"]
[Annotator "ChessBase"]
[Result "1-0"]
[Date "2018.12.28"]
[WhiteElo "2666"]
[BlackElo "2610"]
[PlyCount "83"]
[TimeControl "900+10"]

1. d4 {[%emt 0:0:0]} Nf6 {[%emt 0:0:0]} 2. Nf3 {[%emt 0:0:0]} g6 {[%emt 0:0:24]
} 3. c3 {[%emt 0:0:0]} Bg7 {[%emt 0:0:4]} 4. Bf4 {[%emt 0:0:0]} 0-0 {[%emt 0:0:36]} 5. Nbd2 {[%emt 0:0:3]} d6 {[%emt 0:0:16]} 6. h3 {[%emt 0:0:3]
} Nbd7 {[%emt 0:0:37]} 7. e3 {[%emt 0:0:21]} b6 {[%emt 0:0:18]
} 8. a4 {[%emt 0:0:4]} a6 {[%emt 0:0:18]} 9. Bc4 {[%emt 0:0:3]} Bb7 {[%emt 0:0:8]
} 10. 0-0 {[%emt 0:0:3]} Ra7 {[%emt 0:0:54]} 11. Re1 {[%emt 0:0:0]} Qa8 {[%emt 0:0:23]} 12. Bh2 {[%emt 0:2:25]} c5 {[%emt 0:0:26]} 13. Qb3 {[%emt 0:1:2]} Bh6 {[%emt 0:2:11]} 14. Bf1 {[%emt 0:1:28]} Ne4 {[%emt 0:0:54]
} 15. Nxe4 {[%emt 0:0:3]} Bxe4 {[%emt 0:0:1]} 16. Nd2 {[%emt 0:0:4]
} Bc6 {[%emt 0:1:30]} 17. Qa3 {[%emt 0:0:5]} Rc8 {[%emt 0:0:0]} 18. Nc4 {[%emt 0:0:31]} Qb8 {[%emt 0:0:55]} 19. dxc5 {[%emt 0:0:22]} Nxc5 {[%emt 0:0:32]} 20. a5 {[%emt 0:0:3]} b5 {[%emt 0:0:46]} 21. Nb6 {[%emt 0:0:4]
} Rcc7 {[%emt 0:0:16]} 22. c4 {[%emt 0:1:4]} bxc4 {[%emt 0:0:0]} 23. Bxc4 {[%emt 0:0:5]} Nd7 {[%emt 0:1:33]} 24. Qb3 {[%emt 0:0:2]} Qe8 {[%emt 0:0:1]} 25. Rac1 {[%emt 0:0:38]} Bg7 {[%emt 0:0:1]} 26. Qa2 {[%emt 0:1:49]
} Ne5 {[%emt 0:0:46]} 27. Bxe5 {[%emt 0:0:4]} Bxe5 {[%emt 0:0:0]} 28. b4 {[%emt 0:0:9]} e6 {[%emt 0:0:3]} 29. Qe2 {[%emt 0:0:5]} Bb7 {[%emt 0:0:23]} 30. e4 {[%emt 0:3:7]} Qd8 {[%emt 0:0:18]} 31. Qe3 {[%emt 0:0:50]
} Bc6 {[%emt 0:0:11]} 32. Red1 {[%emt 0:0:15]} Qf6 {[%emt 0:0:0]} 33. g3 {[%emt 0:0:2]} Qe7 {[%emt 0:0:16]} 34. Bf1 {[%emt 0:0:28]} Qe8 {[%emt 0:1:28]} 35. Nc4 {[%emt 0:1:11]} Bb5 {[%emt 0:0:26]} 36. Nxe5 {[%emt 0:0:13]
} dxe5 {[%emt 0:0:2]} 37. Rxc7 {[%emt 0:0:44]} Rxc7 {[%emt 0:0:0]} 38. Qb6 {[%emt 0:0:1]} Rc8 {[%emt 0:0:25]} 39. Bxb5 {[%emt 0:0:5]} axb5 {[%emt 0:0:1]} 40. a6 {[%emt 0:0:7]} Kg7 {[%emt 0:0:17]} 41. a7 {[%emt 0:0:2]
} Qe7 {[%emt 0:0:16]} 42. Qb8 {[%emt 0:0:14]} 1-0